Cogmind - Beta 13 X2 @@@ ROGUE MODE // 2024.02.11 @ 02:44:39 // AFD2020/Player2 Player: Minty Result: Core destroyed Performance ------------- Evolutions (0) 0 Regions Visited (2) 400 Robots Destroyed (6) 30 Value Destroyed (125) 125 Prototype IDs (3) 60 Alien Tech Used (0) 0 Bonus (55) 55 TOTAL SCORE: 670 Bonus ------- Follower Combat Kills 112 Friendly Fire -57 Cogmind --------- Core Integrity 0/250 Matter 270/300 Energy 199/200 System Corruption 2% Temperature Cool (2) Movement Hovering (116) Ox1 Location -10/Subcaves Parts ------- > --- POWER (1) -------- Subdweller Power Source > --- PROPULSION (2) --- Hover Unit Hover Unit > --- UTILITY (2) ------ Subdweller Optics Gun Armor > --- WEAPON (2+2) ----- Light Assault Rifle Subdweller Machine Gun (+) Subdweller Machine Gun > --- INVENTORY (5) ---- Wheel Wheel Small Storage Unit High-capacity Battery (250) Structural Scanner Peak State ------------ > --- POWER ------------ Subdweller Power Source > --- PROPULSION ------- Hover Unit Hover Unit > --- UTILITY ---------- Subdweller Optics Gun Armor > --- WEAPON ----------- Light Assault Rifle Subdweller Machine Gun Subdweller Machine Gun > --- INVENTORY -------- Wheel Wheel Small Storage Unit High-capacity Battery Structural Scanner [Rating: 20] Favorites ----------- Power Ion Engine Engine Ion Engine Propulsion Hover Unit Leg Aluminum Leg Hover Unit Hover Unit Utility Structural Scanner Device Structural Scanner Storage Small Storage Unit Protection Gun Armor Weapon Small Laser Energy Gun Small Laser Ballistic Gun Light Assault Rifle Special Weapon Mining Laser Build | -11 -10 -10 ------- Run | Yrd Mat Sub Slots Evolved . | . . . Power . | . . . Propulsion . | . . . Utility . | . . . Weapon . | . . . Parts Attached 21 | . 11 10 Power 6 | . 4 2 Engine 6 | . 4 2 Core . | . . . Reactor . | . . . Propulsion 6 | . 3 3 Treads . | . . . Leg . | . . . Wheel . | . . . Hover 6 | . 3 3 Flight . | . . . Utility 4 | . 2 2 Device 3 | . 2 1 Storage . | . . . Processor . | . . . Hackware . | . . . Protection 1 | . . 1 Artifact . | . . . Weapon 5 | . 2 3 Energy Gun 1 | . 1 . Energy Cannon . | . . . Ballistic Gun 3 | . . 3 Ballistic Cannon . | . . . Launcher . | . . . Special Weapon 1 | . 1 . Impact Weapon . | . . . Slashing Weapon . | . . . Piercing Weapon . | . . . Special Melee Weapon . | . . . Unidentified Prototypes 1 | . . 1 Parts Lost 6 | . 1 5 Power 1 | . . 1 Propulsion 1 | . . 1 Utility 1 | . . 1 Weapon 3 | . 1 2 Highest Loss Streak 5 | . 1 5 To Critical Strikes . | . . . Average Slot Usage (%) 82 | . 84 70 Engine 13 | . 13 10 Leg 6 | . 7 . Hover 20 | . 20 19 Device 15 | . 16 11 Storage 3 | . 3 . Protection 1 | . . 7 Energy Gun 12 | . 14 5 Ballistic Gun 5 | . 4 12 Special Weapon 3 | . 3 5 Naked Turns . | . . . Heaviest Build 20 | 10 13 20 Greatest Support 20 | 20 20 12 Greatest Overweight (x) 4 | . 1 4 Average Overweight (x) . | . . . Largest Inventory Capacity 8 | . 8 5 Average Capacity 5 | . 5 5 Most Carried 6 | . 6 5 Average Carried 4 | . 3 4 Final Capacity 8 | 8 5 5 Final Carried 6 | 6 5 5 Class Distribution -------------------- 100% | Mutant Dominant Class ---------------- Mutant | -10/Materials Mutant | -10/Subcaves Resources | -11 -10 -10 ----------- Run | Yrd Mat Sub Matter Collected 360 | 200 94 66 Remotely . | . . . Salvage Created 251 | . 238 13 Parts 26 | . 23 3 Haulers Intercepted . | . . . Recyclers Shooed 1 | . 1 . Parts Field Recycled . | . . . Retrieved Matter . | . . . Parts Self-Destructed 13 | . . 13 Prevented . | . . . Kills | -11 -10 -10 ------- Run | Yrd Mat Sub Combat Hostiles Destroyed 4 | . 4 . Guns 4 | . 4 . Classes Destroyed 4 | . 4 . Tunneler 1 | . 1 . Recycler 1 | . 1 . Swarmer 1 | . 1 . Grunt 3 | . 3 . Best Kill Streak 2 | . 2 . Combat Bots Only 2 | . 2 . Max Kills in Single Turn 1 | . 1 . Gunslinging . | . . . Exploded . | . . . Melee . | . . . Uniques/NPCs Destroyed . | . . . Combat | -11 -10 -10 -------- Run | Yrd Mat Sub Hostile Shots Fired 90 | . 64 26 Missed 30 | . 23 7 Damage Taken 626 | . 409 217 Core 146 | . 101 45 Absorbed by Shields . | . . . Core Remaining (%) 100 | 100 . . Volleys Fired 48 | . 43 5 Largest 2 | . 2 2 Hottest 140 | . 140 140 Shots Fired 74 | . 67 7 Gun 59 | . 54 5 Cannon . | . . . Launcher . | . . . Special 15 | . 13 2 Kinetic 24 | . 21 3 Thermal 50 | . 46 4 Explosive . | . . . Electromagnetic . | . . . Robot Hit Streak 14 | . 14 6 Robot Miss Streak 7 | . 7 1 Penetration Max . | . . . Secondary Targets . | . . . Shots Hit Robots 37 | . 33 4 Core Hits 17 | . 13 4 Critical Kills . | . . . Critical Parts Destroyed . | . . . Critical Strikes . | . . . Melee Attacks . | . . . Impact . | . . . Slashing . | . . . Piercing . | . . . Sneak Attacks . | . . . Combat Hostiles . | . . . Follow-up Attacks . | . . . Damage Inflicted 426 | . 371 55 Guns 378 | . 353 25 Cannons . | . . . Explosions . | . . . Melee . | . . . Ramming 24 | . 18 6 Kinetic 109 | . 95 14 Thermal 293 | . 258 35 Explosive . | . . . Electromagnetic . | . . . Impact . | . . . Slashing . | . . . Piercing . | . . . Highest Corruption 2 | . 1 2 Average Corruption 1 | . 1 1 Corruption Purged . | . . . Corruption Blocked . | . . . Effects 7 | . 5 2 Heat Flow Errors 4 | . 3 1 Energy Discharges 1 | . . 1 Misfires 1 | . 1 . Alerts 1 | . 1 . Overload Shots . | . . . Overflow Damage . | . . . Projectiles . | . . . Explosions . | . . . Melee . | . . . Knockbacks . | . . . Impact . | . . . Kinetic . | . . . Secondary . | . . . Self-Inflicted Damage 11 | . 9 2 Shots . | . . . Rammed 4 | . 1 3 Targets Rammed 4 | . 1 3 Kicked . | . . . Crushed . | . . . Highest Temperature 266 | . 266 103 Average Temperature 72 | . 72 67 Received Heat Transfer 144 | . 144 . Siege Activations . | . . . Robots Corrupted . | . . . Combat Hostiles . | . . . Parts Fried . | . . . Impact Corruptions . | . . . Robots Melted . | . . . Combat Hostiles . | . . . Parts Melted . | . . . Heat Transferred 656 | . 581 75 Parts Sabotaged . | . . . Parts Stolen . | . . . Parts Stripped . | . . . Power Chain Reactions . | . . . Missiles Intercepted . | . . . Alert | -11 -10 -10 ------- Run | Yrd Mat Sub Peak Influence 230 | . 230 . Initial . | . . . Average 121 | . 121 . Maximum Alert Level 1 | . 1 . Low Security (%) 60 | . 60 . Level 1 39 | . 39 . Level 2 . | . . . Level 3 . | . . . Level 4 . | . . . Level 5 . | . . . High Security . | . . . Max Security . | . . . Squads Dispatched 3 | . 3 . Investigation 1 | . 1 . Extermination . | . . . Reinforcement 2 | . 2 . Assault . | . . . Garrison . | . . . Intercept . | . . . Searches Triggered . | . . . Construction Impeded . | . . . Haulers Reinforced . | . . . Active Scanning Responses . | . . . Cargo Convoy Interrupts . | . . . Stealth | -11 -10 -10 --------- Run | Yrd Mat Sub Distress Signals 2 | . 2 . Communications Jammed . | . . . Distress Signals . | . . . Times Spotted 18 | . 13 5 Peak Tracking Total 5 | . 5 5 Tactical Retreats 1 | . 1 . Traps | -11 -10 -10 ------- Run | Yrd Mat Sub Traps Triggered 2 | . 2 . Indirectly . | . . . Trap Hack Attempts . | . . . Triggered . | . . . Disarmed . | . . . Reprogrammed . | . . . Reused . | . . . Traps Extracted . | . . . Installed . | . . . Triggered . | . . . Machines | -11 -10 -10 ---------- Run | Yrd Mat Sub Machines Disabled . | . . . Max in Single Turn . | . . . Machines Repaired . | . . . Machines Dismantled . | . . . Machines Sabotaged . | . . . Overloaded Fab Kills . | . . . Hacking | -11 -10 -10 --------- Run | Yrd Mat Sub Machines Accessed 3 | . 3 . Terminals 3 | . 3 . Fabricators . | . . . Repair Stations . | . . . Recycling Units . | . . . Scanalyzers . | . . . Garrison Access . | . . . Total Hacks 10 | . 10 . Successful 4 | . 4 . Failed 6 | . 6 . Catastrophic 1 | . 1 . Database Lockouts . | . . . Manual 8 | . 8 . Terminals 10 | . 10 . Fabricators . | . . . Repair Stations . | . . . Recycling Units . | . . . Scanalyzers . | . . . Garrison Access . | . . . Terminal Hacks 3 | . 3 . Prototype ID Bank 1 | . 1 . Locate Traps 1 | . 1 . Maintenance Status 1 | . 1 . Fabricator Hacks . | . . . Repair Station Hacks . | . . . Recycling Unit Hacks . | . . . Scanalyzer . | . . . Garrison Access Hacks . | . . . Unauthorized Hacks 1 | . 1 . Terminals 1 | . 1 . Botnet 1 | . 1 . Fabricators . | . . . Repair Stations . | . . . Recycling Units . | . . . Scanalyzers . | . . . Garrison Access . | . . . Data Cores Recovered . | . . . Used . | . . . Hacking Detections 3 | . 3 . Full Trace Events 3 | . 3 . Feedback Events 1 | . 1 . Corruption 1 | . 1 . Feedback Blocked . | . . . Robot Schematics Acquired . | . . . Robots Built . | . . . Authchips . | . . . Time . | . . . Total Robot Build Rating . | . . . Part Schematics Acquired . | . . . Parts Built . | . . . Authchips . | . . . Time . | . . . Total Part Build Rating . | . . . Parts Repaired . | . . . Time . | . . . Parts Recycled . | . . . Recycled Matter . | . . . Retrieved Matter . | . . . Retrieved Components . | . . . Parts Scanalyzed . | . . . Part Schematics Acquired . | . . . Parts Damaged . | . . . Bothacking | -11 -10 -10 ------------ Run | Yrd Mat Sub Used RIF Installer . | . . . Robots Hacked . | . . . Non-combat . | . . . Combat . | . . . Robot Hacks Applied . | . . . Relay Couplers Released . | . . . Fabnet Peak Effective % . | . . . Robots Rewired . | . . . Allies Hacked . | . . . Hacks Repelled . | . . . Allies | -11 -10 -10 -------- Run | Yrd Mat Sub Total Allies 1 | . 1 . Largest Group 1 | . 1 1 Highest-Rated Group 60 | . 56 60 Highest-Rated Ally 60 | . 56 60 Total Orders . | . . . Ally Attacks 11 | . 6 5 Total Damage 112 | . 65 47 Kills 5 | . 3 2 Allies Corrupted . | . . . Allies Melted . | . . . Intel | -11 -10 -10 ------- Run | Yrd Mat Sub Robot Analysis Total . | . . . Derelict Logs Recovered . | . . . Drone Launches . | . . . Drone Recoveries . | . . . Exploration | -11 -10 -10 ------------- Run | Yrd Mat Sub Turns Passed 640 | . 533 107 Spaces Moved 257 | 1 200 56 Core 8 | . . 8 Treads . | . . . Legs 72 | 1 71 . Wheels . | . . . Hover 177 | . 129 48 Flight . | . . . Fastest Speed 56 | 120 56 56 Average Speed 83 | 120 79 99 Slowest Speed 250 | 120 120 250 Overloaded Moves . | . . . Propulsion Burnouts . | . . . Robots Hopped . | . . . Cave-ins Triggered . | . . . Exploration Rate (%) 14 | 2 37 5 Regions Visited 2 Branch Regions 1 Pre-discovered Areas . | . . . Known Exits Taken . | . . . Unknown Exits Taken 2 | 1 1 . Scrap Searched . | . . . Spaces Dug 3 | . 3 . Terrain Destroyed 3 | . 3 . Melee . | . . . Projectile 3 | . 3 . AOE . | . . . Terrain Rammed . | . . . Walls Destroyed . | . . . Machines Disabled . | . . . Actions | -11 -10 -10 --------- Run | Yrd Mat Sub Total 582 | . 487 95 Wait 233 | . 216 17 Move 255 | . 199 56 Hop . | . . . Pick Up 4 | . 4 . Fast Attach 16 | . 8 8 Attach 1 | . . 1 Detach 4 | . 3 1 Swap 4 | . 3 1 Drop 13 | . 10 3 Fire 48 | . 43 5 Melee . | . . . Ram 4 | . 1 3 Kick . | . . . Crush . | . . . Escape Stasis . | . . . Rewire . | . . . Trap . | . . . Miscellaneous . | . . . Route ------- -11/Scrapyard -10/Materials (discovered 2 exits: [*Mat] / [*Sub]) -10/Subcaves History --------- Turn | Location | Event 1 | -11/Scrapyard | Discovered new exit (range 0) 1 | -11/Scrapyard | Entered Materials 184 | -10/Materials | Core integrity fell below 50% 217 | -10/Materials | Discovered new exit (range 16) 308 | -10/Materials | Build established: Mutant 525 | -10/Materials | Discovered new exit (range 4) 534 | -10/Materials | Entered Subcaves 570 | -10/Subcaves | A Subdweller sparked back to life 570 | -10/Subcaves | A Subdweller sparked back to life 576 | -10/Subcaves | Found Prototype Protection 576 | -10/Subcaves | Identified Gun Armor 578 | -10/Subcaves | Attached Gun Armor, gained temporary slots: Weapon x2 607 | -10/Subcaves | Lost 5 parts (1p1n1u2w) 642 | -10/Subcaves | Core destroyed Last Messages --------------- 00593_ Dropped Hover Unit. 00595_ Flight Unit fries itself beyond repair. 00596_ Player 2 drops Ion Engine. 00596_ Player 2 attaches Sub. Power Source. 00596_ Acquired Ion Engine. 00597_ Acquired 34 matter. 00599_ System corrupted: Energy discharge (-11). 00599_ Lgt. Assault Rifle fries itself beyond repair. 00600_ Lgt. Ion Engine fries itself beyond repair. 00601_ Player 2 attaches Sub. Machine Gun. 00605_ Lgt. Ion Engine fries itself beyond repair. 00609_ Player 2 drops Com. Wheel. 00609_ Player 2 attaches Sub. Monowheel. 00617_ Acquired Hover Unit. 00626_ Acquired 20 matter. 00629_ Dropped Ion Engine. 00632_ Acquired Sub. Machine Gun. 00639_ Acquired Sub. Optics. 00642_ Player 2 crushed by falling debris. 00642_ Player 2 system corrupted by crushing effect. Map ----- +----------------------------------------------------+ | ?????????????????????????????????????????????????? | | ?????????????????????????????????????????????????? | | ?????????????????????????????????????????????????? | | ??????????????????????????????????#??????????????? | | ?????????????????????????????????????????????????? | | ???????????????????????????????????????????????#?? | | ??????????????????????????????????#??????????????? | | ?????????????????????????????????????????????????? | | ???????????????????????????????#???????????#?????? | | ?????????????????????????????????????????????????? | | ??????????????????????????####???????????????????? | | ?????????????????########?######??#####?????????#? | | ?????????????????# #####?## ############????????? | | ????????????????## ## ###### #######????? | | ???????????????## # ## # # ######????? | | ???????????????# # ## ##????? | | ??????????????# ## ? # ##?#??? | | ???????????? ####### ###????? | | ???????????? ## #< ###### #######? | | ?????????????????????####<& < ##### ######## | | ?????????????????????### !& &% #### ### | | ?????????????????????##= < &"# # ## | | ?????????????????????###& &% ## # ### | | ???????????????#?????####& ###### # #### ### | | ??????????????????????## !* #### # #### ##? | | ??????????????????????###@@##?### ## ##??? ##? | | ??????????????????????#####;#?### ### ##??? ##? | | ???????????????#???????##;###??## ### ??? ##? | | ???????????????????????##;;;???## ### ?????? | | ???????????????????????#; ;##??## ## ???? | | ???????????????????????#;;;#??## ##? | | ???????????????????????##;;#???## # ##? | | ????????????????????????#;##???## ######## ###? | | ????????????????????????# ; ???# ######### ####? | | ????????????????????????# #???? ????#######?? | | ????????????????????????; ;#???? ???????####??? | | ????????????????????????##;#???? ?????????????? | | ?????????????????????????#;#???? ?????????????? | | ??????????????????????????##?? ?????????????? | | ??????????????????????????????### ?????????????? | | ??????????????????????????????#### ??????????????? | | ????????????????????????????????## ??????????????? | | ?????????????????????????????????????????????????? | | ?????????????????????????????????????????????????? | | ?????????????????????????????????????????????????? | | ?????????????????????????????????????????????????? | | ?????????????????????????????????????????????????? | | ?????????????????????????????????????????????????? | | ?????????????????????????????????????????????????? | | ?????????????????????????????????????????????????? | +----------------------------------------------------+ Best States ------------- Heat Dissipation 25 Energy Generation 15 Energy Capacity 250 Matter Stores 300 Matter Capacity 300 Sight Range 21 Terrain Scan Range 16 Terrain Scan Density 10 Armor Coverage 60 Evasion (%) 55 Item Schematics ----------------- None Robot Schematics ------------------ None Fabricated ------------ Nothing Alien Tech Used ----------------- None Achievements -------------- None Challenges ------------ None Player 2 | -11 -10 -10 ---------- Run | Yrd Mat Sub Slots Evolved . | . . . Power . | . . . Propulsion . | . . . Utility . | . . . Weapon . | . . . Parts Attached 10 | . 7 3 Parts Lost 2 | . . 2 Damage Taken 410 | . 108 302 Core 108 | . 47 61 Player 2/Cogmind (%) 42 | . 31 57 Absorbed by Shields . | . . . Damage Inflicted 112 | . 65 47 Player 2/Cogmind (%) 20 | . 14 46 Combat Hostiles Destroyed 5 | . 3 2 Player 2/Cogmind (%) 55 | . 42 100 Game ------ Seed SubatomicTransmissionBuckler Manual? 0 Play Time 00:04:43 Cumulative 649.8 hours Start 2024.02.11 @ 02:41:01 End 2024.02.11 @ 02:44:39 Sessions 1 Manual Loads 0 Difficulty Rogue Special Mode AFD2020/Player2 Game No. 644 Rogue 371 Adventurer 123 Explorer 150 Win Type - Total 25 Types 19/0/4/1/0/0/0/1/0 Lore% 80 Gallery% 91 Achievement% 76 Wizard Run 0 Options --------- ASCII 0 Keyboard 1 Movement Numpad Keybinds 0 Fullscreen 2 Font 18/X11Bold Map View 76x50 Zoom Use 0% Tactical HUD 1 Map Filters NONE Filters NONE Steam 1 RUN: cdb93bbf-a93d-4dc5-8127-99db94b4e799